[Event "Titled Tuesday Blitz March 07 Late 2023"]
[White "Yanchenko, Roman"]
[Black "Kleiman, Jake"]
[WhiteFideId "4137329"]
[BlackFideId "2020041"]
[WhiteElo "2491"]
[BlackElo "2483"]
[Result "1-0"]
[Round "03"]
[TimeControl "180+2"]
[Date "2023.03.07"]
[WhiteClock "0:00:59"]
[BlackClock "0:00:13"]

1. d4 {[%clk 0:03:00]}  Nf6 {[%clk 0:02:52]} 2. c4 {[%clk 0:03:01]}  e6 {[%clk 0:02:51]} 3. Nf3 {[%clk 0:03:01]}  Bb4+ {[%clk 0:02:52]} 4. Bd2 {[%clk 0:03:01]}  Bxd2+ {[%clk 0:02:51]} 5. Qxd2 {[%clk 0:03:02]}  O-O {[%clk 0:02:51]} 6. e3 {[%clk 0:03:02]}  d5 {[%clk 0:02:52]} 7. Nc3 {[%clk 0:03:02]}  Qe7 {[%clk 0:02:52]} 8. Rd1 {[%clk 0:03:02]}  Rd8 {[%clk 0:02:52]} 9. a3 {[%clk 0:03:03]}  a6 {[%clk 0:02:52]} 10. Qc2 {[%clk 0:03:02]}  dxc4 {[%clk 0:02:45]} 11. Bxc4 {[%clk 0:03:01]}  c5 {[%clk 0:02:45]} 12. dxc5 {[%clk 0:02:53]}  Rxd1+ {[%clk 0:02:43]} 13. Qxd1 {[%clk 0:02:48]}  Qxc5 {[%clk 0:02:43]} 14. Na4 {[%clk 0:02:41]}  Qc7 {[%clk 0:02:39]} 15. Qd4 {[%clk 0:02:27]}  Nbd7 {[%clk 0:02:16]} 16. Nc3 {[%clk 0:02:18]}  b5 {[%clk 0:02:15]} 17. Be2 {[%clk 0:02:17]}  Bb7 {[%clk 0:02:15]} 18. O-O {[%clk 0:02:16]}  h6 {[%clk 0:02:09]} 19. Rd1 {[%clk 0:02:16]}  Rc8 {[%clk 0:02:08]} 20. h3 {[%clk 0:02:13]}  Qc6 {[%clk 0:01:51]} 21. Ne1 {[%clk 0:02:05]}  Qc7 {[%clk 0:01:45]} 22. Bf3 {[%clk 0:02:04]}  Bxf3 {[%clk 0:01:41]} 23. Nxf3 {[%clk 0:02:05]}  Qc6 {[%clk 0:01:25]} 24. Ne5 {[%clk 0:01:54]}  Nxe5 {[%clk 0:01:25]} 25. Qxe5 {[%clk 0:01:55]}  Qc4 {[%clk 0:01:23]} 26. Qd6 {[%clk 0:01:51]}  a5 {[%clk 0:01:06]} 27. Qa6 {[%clk 0:01:45]}  b4 {[%clk 0:01:03]} 28. Rd8+ {[%clk 0:01:45]}  Rxd8 {[%clk 0:00:54]} 29. Qxc4 {[%clk 0:01:44]}  bxc3 {[%clk 0:00:55]} 30. Qxc3 {[%clk 0:01:43]}  a4 {[%clk 0:00:53]} 31. Qc6 {[%clk 0:01:39]}  Rd1+ {[%clk 0:00:50]} 32. Kh2 {[%clk 0:01:39]}  Rd2 {[%clk 0:00:50]} 33. Qxa4 {[%clk 0:01:27]}  Rxb2 {[%clk 0:00:50]} 34. Kg3 {[%clk 0:01:23]}  h5 {[%clk 0:00:40]} 35. Kf3 {[%clk 0:01:19]}  Rd2 {[%clk 0:00:29]} 36. Qb4 {[%clk 0:01:15]}  Ra2 {[%clk 0:00:27]} 37. a4 {[%clk 0:01:14]}  Nd5 {[%clk 0:00:27]} 38. Qb8+ {[%clk 0:01:05]}  Kh7 {[%clk 0:00:27]} 39. Qb3 {[%clk 0:00:58]}  Ra1 {[%clk 0:00:24]} 40. Qb2 {[%clk 0:00:59]}  Re1 {[%clk 0:00:13]} 41. a5 {[%clk 0:00:59]} 1-0


[Site "https://www.chess.com"]

[Event "Titled Tuesday Blitz March 07 Late 2023"]
[White "TimGrutter03"]
[Black "Boyer, Mahel"]
[BlackFideId "45102422"]
[WhiteElo "2482"]
[BlackElo "2439"]
[Result "1-0"]
[Round "03"]
[TimeControl "180+2"]
[Date "2023.03.07"]
[WhiteClock "0:00:20"]
[BlackClock "0:00:02"]

1. e4 {[%clk 0:03:00]}  Nc6 {[%clk 0:02:59]} 2. Nf3 {[%clk 0:03:01]}  d5 {[%clk 0:03:00]} 3. exd5 {[%clk 0:03:01]}  Qxd5 {[%clk 0:03:01]} 4. Nc3 {[%clk 0:03:01]}  Qh5 {[%clk 0:03:02]} 5. Be2 {[%clk 0:03:00]}  Bg4 {[%clk 0:03:02]} 6. Ne4 {[%clk 0:02:48]}  O-O-O {[%clk 0:03:02]} 7. Ng3 {[%clk 0:02:48]}  Qd5 {[%clk 0:02:54]} 8. h3 {[%clk 0:02:39]}  Bxf3 {[%clk 0:02:35]} 9. Bxf3 {[%clk 0:02:40]}  Qe5+ {[%clk 0:02:31]} 10. Qe2 {[%clk 0:02:38]}  Qxe2+ {[%clk 0:02:29]} 11. Nxe2 {[%clk 0:02:36]}  Ne5 {[%clk 0:02:19]} 12. Bg4+ {[%clk 0:02:20]}  e6 {[%clk 0:02:18]} 13. Nc3 {[%clk 0:02:16]}  Nf6 {[%clk 0:02:15]} 14. Be2 {[%clk 0:02:16]}  Nc6 {[%clk 0:02:13]} 15. d3 {[%clk 0:02:07]}  Nd4 {[%clk 0:02:00]} 16. Bd1 {[%clk 0:02:07]}  Bc5 {[%clk 0:01:59]} 17. Be3 {[%clk 0:02:05]}  a6 {[%clk 0:01:54]} 18. Ne4 {[%clk 0:01:56]}  Bb6 {[%clk 0:01:51]} 19. c3 {[%clk 0:01:47]}  Nxe4 {[%clk 0:01:32]} 20. dxe4 {[%clk 0:01:41]}  Nc6 {[%clk 0:01:23]} 21. Bxb6 {[%clk 0:01:39]}  cxb6 {[%clk 0:01:23]} 22. Be2 {[%clk 0:01:34]}  g5 {[%clk 0:01:21]} 23. h4 {[%clk 0:01:30]}  h6 {[%clk 0:01:19]} 24. Rd1 {[%clk 0:01:22]}  Rdg8 {[%clk 0:01:13]} 25. hxg5 {[%clk 0:01:16]}  hxg5 {[%clk 0:01:11]} 26. Kd2 {[%clk 0:01:16]}  Ne5 {[%clk 0:01:09]} 27. Ke3 {[%clk 0:01:14]}  Ng6 {[%clk 0:00:57]} 28. g3 {[%clk 0:01:10]}  Rxh1 {[%clk 0:00:49]} 29. Rxh1 {[%clk 0:01:07]}  Rh8 {[%clk 0:00:50]} 30. Rxh8+ {[%clk 0:01:07]}  Nxh8 {[%clk 0:00:51]} 31. Bh5 {[%clk 0:01:05]}  Kd7 {[%clk 0:00:46]} 32. e5 {[%clk 0:01:03]}  Ke7 {[%clk 0:00:38]} 33. f4 {[%clk 0:00:54]}  Ng6 {[%clk 0:00:25]} 34. Bxg6 {[%clk 0:00:49]}  fxg6 {[%clk 0:00:26]} 35. Kf3 {[%clk 0:00:42]}  b5 {[%clk 0:00:22]} 36. Kg4 {[%clk 0:00:35]}  gxf4 {[%clk 0:00:23]} 37. gxf4 {[%clk 0:00:34]}  Kf7 {[%clk 0:00:24]} 38. Kg5 {[%clk 0:00:35]}  Kg7 {[%clk 0:00:24]} 39. b3 {[%clk 0:00:19]}  b6 {[%clk 0:00:06]} 40. a4 {[%clk 0:00:19]}  bxa4 {[%clk 0:00:01]} 41. bxa4 {[%clk 0:00:20]}  b5 {[%clk 0:00:01]} 42. a5 {[%clk 0:00:20]}  Kf7 {[%clk 0:00:01]} 43. Kh6 {[%clk 0:00:20]}  Ke7 {[%clk 0:00:01]} 44. Kxg6 {[%clk 0:00:20]}  Kd7 {[%clk 0:00:01]} 45. Kf7 {[%clk 0:00:21]}  Kc7 {[%clk 0:00:01]} 46. Kxe6 {[%clk 0:00:21]}  b4 {[%clk 0:00:02]} 47. cxb4 {[%clk 0:00:20]} 1-0


[Site "https://www.chess.com"]

[Event "Titled Tuesday Blitz March 07 Late 2023"]
[White "EREBUNI91"]
[Black "Goltseva, Ekaterina"]
[BlackFideId "24173770"]
[WhiteElo "2738"]
[BlackElo "2200"]
[Result "1-0"]
[Round "03"]
[TimeControl "180+2"]
[Date "2023.03.07"]
[WhiteClock "0:00:13"]
[BlackClock "0:00:02"]

1. e4 {[%clk 0:03:00]}  e5 {[%clk 0:02:56]} 2. Nf3 {[%clk 0:03:00]}  Nf6 {[%clk 0:02:57]} 3. d4 {[%clk 0:03:00]}  Nxe4 {[%clk 0:02:53]} 4. Bd3 {[%clk 0:03:00]}  d5 {[%clk 0:02:50]} 5. Nxe5 {[%clk 0:03:00]}  Bd6 {[%clk 0:02:47]} 6. O-O {[%clk 0:02:58]}  O-O {[%clk 0:02:35]} 7. Nd2 {[%clk 0:02:54]}  Bf5 {[%clk 0:02:29]} 8. Qf3 {[%clk 0:02:48]}  Nxd2 {[%clk 0:02:04]} 9. Bxd2 {[%clk 0:02:49]}  Bxd3 {[%clk 0:02:03]} 10. Nxd3 {[%clk 0:02:42]}  Nc6 {[%clk 0:01:59]} 11. c3 {[%clk 0:02:41]}  Ne7 {[%clk 0:01:57]} 12. Rae1 {[%clk 0:02:41]}  Ng6 {[%clk 0:01:54]} 13. Qh5 {[%clk 0:02:39]}  c6 {[%clk 0:01:46]} 14. f4 {[%clk 0:02:24]}  Re8 {[%clk 0:01:21]} 15. f5 {[%clk 0:02:11]}  Nf8 {[%clk 0:01:13]} 16. f6 {[%clk 0:02:00]}  Rxe1 {[%clk 0:01:05]} 17. Bxe1 {[%clk 0:02:01]}  Qe8 {[%clk 0:00:57]} 18. fxg7 {[%clk 0:01:13]}  Ng6 {[%clk 0:00:55]} 19. Bd2 {[%clk 0:01:11]}  Qe4 {[%clk 0:00:50]} 20. Nf2 {[%clk 0:01:06]}  Qh4 {[%clk 0:00:43]} 21. Qxh4 {[%clk 0:01:04]}  Nxh4 {[%clk 0:00:44]} 22. Bg5 {[%clk 0:00:59]}  Ng6 {[%clk 0:00:29]} 23. Bf6 {[%clk 0:00:51]}  Be7 {[%clk 0:00:25]} 24. Ng4 {[%clk 0:00:40]}  Bxf6 {[%clk 0:00:25]} 25. Nxf6+ {[%clk 0:00:41]}  Kxg7 {[%clk 0:00:25]} 26. Nh5+ {[%clk 0:00:41]}  Kf8 {[%clk 0:00:20]} 27. Re1 {[%clk 0:00:39]}  h6 {[%clk 0:00:17]} 28. Nf6 {[%clk 0:00:39]}  Rd8 {[%clk 0:00:13]} 29. g3 {[%clk 0:00:37]}  Kg7 {[%clk 0:00:13]} 30. Nh5+ {[%clk 0:00:34]}  Kf8 {[%clk 0:00:13]} 31. Kf2 {[%clk 0:00:31]}  Re8 {[%clk 0:00:13]} 32. Rxe8+ {[%clk 0:00:25]}  Kxe8 {[%clk 0:00:14]} 33. Ng7+ {[%clk 0:00:25]}  Kf8 {[%clk 0:00:13]} 34. Nf5 {[%clk 0:00:26]}  h5 {[%clk 0:00:12]} 35. Nd6 {[%clk 0:00:24]}  b5 {[%clk 0:00:09]} 36. Kf3 {[%clk 0:00:21]}  Ke7 {[%clk 0:00:07]} 37. Nb7 {[%clk 0:00:21]}  Kf6 {[%clk 0:00:06]} 38. Nd8 {[%clk 0:00:20]}  Ne7 {[%clk 0:00:06]} 39. Kf4 {[%clk 0:00:18]}  a5 {[%clk 0:00:06]} 40. g4 {[%clk 0:00:16]}  hxg4 {[%clk 0:00:06]} 41. Kxg4 {[%clk 0:00:17]}  Kg6 {[%clk 0:00:06]} 42. b3 {[%clk 0:00:15]}  f5+ {[%clk 0:00:05]} 43. Kf4 {[%clk 0:00:14]}  Kf6 {[%clk 0:00:06]} 44. h4 {[%clk 0:00:14]}  Ng6+ {[%clk 0:00:06]} 45. Kg3 {[%clk 0:00:14]}  Ne7 {[%clk 0:00:07]} 46. a4 {[%clk 0:00:13]}  bxa4 {[%clk 0:00:04]} 47. bxa4 {[%clk 0:00:14]}  Kg6 {[%clk 0:00:03]} 48. Nb7 {[%clk 0:00:13]}  Kh5 {[%clk 0:00:02]} 49. Nxa5 {[%clk 0:00:12]}  f4+ {[%clk 0:00:01]} 50. Kxf4 {[%clk 0:00:12]}  Kxh4 {[%clk 0:00:02]} 51. Nb7 {[%clk 0:00:12]}  Kh3 {[%clk 0:00:02]} 52. a5 {[%clk 0:00:12]}  Kg2 {[%clk 0:00:02]} 53. a6 {[%clk 0:00:13]}  Nc8 {[%clk 0:00:03]} 54. Na5 {[%clk 0:00:10]}  Na7 {[%clk 0:00:02]} 55. Ke5 {[%clk 0:00:10]}  Kf3 {[%clk 0:00:02]} 56. Kd6 {[%clk 0:00:11]}  Ke3 {[%clk 0:00:02]} 57. Nxc6 {[%clk 0:00:11]}  Nb5+ {[%clk 0:00:01]} 58. Kc5 {[%clk 0:00:12]}  Nc7 {[%clk 0:00:02]} 59. a7 {[%clk 0:00:12]}  Kd3 {[%clk 0:00:02]} 60. Kb6 {[%clk 0:00:12]}  Na8+ {[%clk 0:00:02]} 61. Kb7 {[%clk 0:00:12]}  Kxc3 {[%clk 0:00:02]} 62. Kxa8 {[%clk 0:00:13]} 1-0


[Site "https://www.chess.com"]

[Event "Titled Tuesday Blitz March 07 Late 2023"]
[White "Manukian, Artak"]
[Black "Adewumi, Tanitoluwa"]
[WhiteFideId "13301373"]
[BlackFideId "30966396"]
[WhiteElo "2130"]
[BlackElo "2735"]
[Result "0-1"]
[Round "03"]
[TimeControl "180+2"]
[Date "2023.03.07"]
[WhiteClock "0:00:56"]
[BlackClock "0:00:13"]

1. e4 {[%clk 0:03:00]}  c5 {[%clk 0:02:59]} 2. Nf3 {[%clk 0:03:00]}  e6 {[%clk 0:02:58]} 3. c3 {[%clk 0:03:00]}  Nf6 {[%clk 0:02:56]} 4. e5 {[%clk 0:03:00]}  Nd5 {[%clk 0:02:57]} 5. d4 {[%clk 0:03:00]}  cxd4 {[%clk 0:02:57]} 6. cxd4 {[%clk 0:03:01]}  b6 {[%clk 0:02:57]} 7. Nc3 {[%clk 0:03:01]}  Bb7 {[%clk 0:02:56]} 8. Bd3 {[%clk 0:02:59]}  Nxc3 {[%clk 0:02:56]} 9. bxc3 {[%clk 0:02:58]}  d6 {[%clk 0:02:56]} 10. O-O {[%clk 0:02:57]}  Be7 {[%clk 0:02:56]} 11. Bf4 {[%clk 0:02:53]}  dxe5 {[%clk 0:02:21]} 12. Nxe5 {[%clk 0:02:46]}  O-O {[%clk 0:02:16]} 13. Qh5 {[%clk 0:02:37]}  f5 {[%clk 0:02:13]} 14. Rfe1 {[%clk 0:02:31]}  Nd7 {[%clk 0:01:42]} 15. Nxd7 {[%clk 0:02:23]}  Qxd7 {[%clk 0:01:40]} 16. Re3 {[%clk 0:02:22]}  Rac8 {[%clk 0:01:33]} 17. Rh3 {[%clk 0:02:13]}  h6 {[%clk 0:00:32]} 18. Bxh6 {[%clk 0:02:04]}  Qe8 {[%clk 0:00:32]} 19. Qxe8 {[%clk 0:01:49]}  Rfxe8 {[%clk 0:00:33]} 20. Bd2 {[%clk 0:01:49]}  Bf6 {[%clk 0:00:33]} 21. f4 {[%clk 0:01:42]}  Red8 {[%clk 0:00:31]} 22. a4 {[%clk 0:01:37]}  Rxd4 {[%clk 0:00:15]} 23. cxd4 {[%clk 0:01:30]}  Bxd4+ {[%clk 0:00:16]} 24. Kf1 {[%clk 0:01:29]}  Bxa1 {[%clk 0:00:17]} 25. Re3 {[%clk 0:01:27]}  Kf7 {[%clk 0:00:16]} 26. Re1 {[%clk 0:01:24]}  Bd4 {[%clk 0:00:16]} 27. Rc1 {[%clk 0:01:19]}  Rxc1+ {[%clk 0:00:15]} 28. Bxc1 {[%clk 0:01:20]}  Bc6 {[%clk 0:00:14]} 29. Bb5 {[%clk 0:01:19]}  Bxb5+ {[%clk 0:00:13]} 30. axb5 {[%clk 0:01:20]}  e5 {[%clk 0:00:12]} 31. fxe5 {[%clk 0:01:18]}  Bxe5 {[%clk 0:00:13]} 32. Ke2 {[%clk 0:01:13]}  Ke6 {[%clk 0:00:13]} 33. Kd3 {[%clk 0:01:08]}  Kd5 {[%clk 0:00:12]} 34. Ba3 {[%clk 0:01:06]}  Bxh2 {[%clk 0:00:11]} 35. Bf8 {[%clk 0:01:05]}  Be5 {[%clk 0:00:11]} 36. Be7 {[%clk 0:01:05]}  g6 {[%clk 0:00:10]} 37. Bb4 {[%clk 0:01:04]}  g5 {[%clk 0:00:10]} 38. Bd2 {[%clk 0:01:04]}  g4 {[%clk 0:00:11]} 39. Be3 {[%clk 0:01:02]}  f4 {[%clk 0:00:11]} 40. Bf2 {[%clk 0:01:02]}  f3 {[%clk 0:00:11]} 41. gxf3 {[%clk 0:01:01]}  gxf3 {[%clk 0:00:12]} 42. Be3 {[%clk 0:01:01]}  Bd6 {[%clk 0:00:12]} 43. Bc1 {[%clk 0:00:57]}  Bc5 {[%clk 0:00:12]} 44. Bb2 {[%clk 0:00:56]}  f2 {[%clk 0:00:12]} 45. Ke2 {[%clk 0:00:56]}  Kc4 {[%clk 0:00:13]} 0-1


[Site "https://www.chess.com"]

[Event "Titled Tuesday Blitz March 07 Late 2023"]
[White "Iliaguev, Nisim"]
[Black "Prydun, Andriy"]
[WhiteFideId "2817276"]
[BlackFideId "14145898"]
[WhiteElo "2241"]
[BlackElo "2164"]
[Result "1/2-1/2"]
[Round "03"]
[TimeControl "180+2"]
[Date "2023.03.07"]
[WhiteClock "0:00:14"]
[BlackClock "0:00:10"]

1. d4 {[%clk 0:03:00]}  a5 {[%clk 0:02:43]} 2. g3 {[%clk 0:02:59]}  Ra6 {[%clk 0:02:41]} 3. Bg2 {[%clk 0:02:54]}  Rd6 {[%clk 0:02:36]} 4. Nf3 {[%clk 0:02:54]}  Nf6 {[%clk 0:02:33]} 5. O-O {[%clk 0:02:52]}  g6 {[%clk 0:02:15]} 6. c4 {[%clk 0:02:52]}  Bg7 {[%clk 0:02:14]} 7. Nc3 {[%clk 0:02:52]}  O-O {[%clk 0:02:03]} 8. e4 {[%clk 0:02:52]}  Ng4 {[%clk 0:01:00]} 9. d5 {[%clk 0:02:46]}  Ne5 {[%clk 0:00:48]} 10. Bf4 {[%clk 0:02:45]}  Nxf3+ {[%clk 0:00:44]} 11. Bxf3 {[%clk 0:02:45]}  Ra6 {[%clk 0:00:43]} 12. Qe2 {[%clk 0:02:44]}  Ra8 {[%clk 0:00:37]} 13. Rac1 {[%clk 0:02:43]}  Na6 {[%clk 0:00:37]} 14. Rfd1 {[%clk 0:02:42]}  Nc5 {[%clk 0:00:36]} 15. h4 {[%clk 0:02:38]}  h5 {[%clk 0:00:33]} 16. Be3 {[%clk 0:02:28]}  d6 {[%clk 0:00:31]} 17. Bd4 {[%clk 0:02:28]}  Bh6 {[%clk 0:00:30]} 18. Rb1 {[%clk 0:02:26]}  Nd7 {[%clk 0:00:26]} 19. Bg2 {[%clk 0:02:23]}  Ne5 {[%clk 0:00:24]} 20. f4 {[%clk 0:02:23]}  Bg4 {[%clk 0:00:24]} 21. Qf1 {[%clk 0:02:05]}  Bxd1 {[%clk 0:00:23]} 22. Rxd1 {[%clk 0:02:06]}  Nd7 {[%clk 0:00:23]} 23. e5 {[%clk 0:02:02]}  Bg7 {[%clk 0:00:18]} 24. Re1 {[%clk 0:01:59]}  f5 {[%clk 0:00:07]} 25. Qd3 {[%clk 0:01:57]}  b6 {[%clk 0:00:06]} 26. a3 {[%clk 0:01:45]}  Rc8 {[%clk 0:00:05]} 27. Qe3 {[%clk 0:01:44]}  Kh7 {[%clk 0:00:04]} 28. Nd1 {[%clk 0:01:41]}  Re8 {[%clk 0:00:04]} 29. Nf2 {[%clk 0:01:37]}  e6 {[%clk 0:00:04]} 30. exd6 {[%clk 0:01:35]}  exd5 {[%clk 0:00:04]} 31. Qxe8 {[%clk 0:01:26]}  Qxe8 {[%clk 0:00:05]} 32. Rxe8 {[%clk 0:01:26]}  Rxe8 {[%clk 0:00:06]} 33. Bxg7 {[%clk 0:01:23]}  Kxg7 {[%clk 0:00:07]} 34. dxc7 {[%clk 0:01:06]}  Rc8 {[%clk 0:00:07]} 35. Bxd5 {[%clk 0:00:56]}  Rxc7 {[%clk 0:00:08]} 36. Nd3 {[%clk 0:00:53]}  Nf6 {[%clk 0:00:08]} 37. Be6 {[%clk 0:00:51]}  Re7 {[%clk 0:00:08]} 38. Bc8 {[%clk 0:00:51]}  Re4 {[%clk 0:00:06]} 39. Ne5 {[%clk 0:00:45]}  Re3 {[%clk 0:00:05]} 40. b4 {[%clk 0:00:42]}  axb4 {[%clk 0:00:04]} 41. axb4 {[%clk 0:00:42]}  Rxg3+ {[%clk 0:00:04]} 42. Kf2 {[%clk 0:00:43]}  Ne4+ {[%clk 0:00:05]} 43. Ke2 {[%clk 0:00:43]}  Rb3 {[%clk 0:00:04]} 44. b5 {[%clk 0:00:41]}  Kf6 {[%clk 0:00:03]} 45. Bd7 {[%clk 0:00:39]}  Nc5 {[%clk 0:00:01]} 46. Be8 {[%clk 0:00:39]}  Rh3 {[%clk 0:00:02]} 47. Nxg6 {[%clk 0:00:34]}  Ne4 {[%clk 0:00:01]} 48. Ne5 {[%clk 0:00:27]}  Rxh4 {[%clk 0:00:02]} 49. Bc6 {[%clk 0:00:26]}  Rh2+ {[%clk 0:00:02]} 50. Ke3 {[%clk 0:00:23]}  Rh3+ {[%clk 0:00:03]} 51. Kd4 {[%clk 0:00:23]}  Nc5 {[%clk 0:00:03]} 52. Kd5 {[%clk 0:00:18]}  Rb3 {[%clk 0:00:03]} 53. Kd6 {[%clk 0:00:18]}  Na4 {[%clk 0:00:04]} 54. Kc7 {[%clk 0:00:17]}  h4 {[%clk 0:00:04]} 55. Nd7+ {[%clk 0:00:17]}  Kg7 {[%clk 0:00:03]} 56. Nxb6 {[%clk 0:00:17]}  Nxb6 {[%clk 0:00:04]} 57. Kxb6 {[%clk 0:00:18]}  h3 {[%clk 0:00:04]} 58. Kc5 {[%clk 0:00:18]}  h2 {[%clk 0:00:02]} 59. b6 {[%clk 0:00:19]}  Kf7 {[%clk 0:00:02]} 60. b7 {[%clk 0:00:18]}  Ke7 {[%clk 0:00:03]} 61. Kd4 {[%clk 0:00:16]}  Kd6 {[%clk 0:00:02]} 62. Bd5 {[%clk 0:00:16]}  Kc7 {[%clk 0:00:03]} 63. Ke5 {[%clk 0:00:16]}  Rxb7 {[%clk 0:00:02]} 64. Kxf5 {[%clk 0:00:16]}  Ra7 {[%clk 0:00:03]} 65. Kg4 {[%clk 0:00:15]}  Ra4 {[%clk 0:00:03]} 66. Kg3 {[%clk 0:00:14]}  Rxc4 {[%clk 0:00:03]} 67. Kxh2 {[%clk 0:00:14]}  Rxf4 {[%clk 0:00:04]} 68. Kg3 {[%clk 0:00:15]}  Rf6 {[%clk 0:00:04]} 69. Bf3 {[%clk 0:00:15]}  Rd6 {[%clk 0:00:05]} 70. Kf2 {[%clk 0:00:15]}  Kb6 {[%clk 0:00:06]} 71. Ke3 {[%clk 0:00:15]}  Kc5 {[%clk 0:00:07]} 72. Ke4 {[%clk 0:00:16]}  Rd8 {[%clk 0:00:07]} 73. Ke5 {[%clk 0:00:16]}  Rb8 {[%clk 0:00:08]} 74. Kf6 {[%clk 0:00:16]}  Rb4 {[%clk 0:00:09]} 75. Bh5 {[%clk 0:00:16]}  Rb2 {[%clk 0:00:09]} 76. Bf7 {[%clk 0:00:16]}  Rd2 {[%clk 0:00:10]} 77. Kg7 {[%clk 0:00:17]}  Kd4 {[%clk 0:00:11]} 78. Kh8 {[%clk 0:00:17]}  Ke5 {[%clk 0:00:12]} 79. Bg8 {[%clk 0:00:17]}  Rf2 {[%clk 0:00:13]} 80. Ba2 {[%clk 0:00:17]}  Kf6 {[%clk 0:00:13]} 81. Bb3 {[%clk 0:00:18]}  Rd2 {[%clk 0:00:11]} 82. Bc4 {[%clk 0:00:17]}  Rf2 {[%clk 0:00:12]} 83. Bb3 {[%clk 0:00:16]}  Rb2 {[%clk 0:00:11]} 84. Bc4 {[%clk 0:00:16]}  Rb4 {[%clk 0:00:11]} 85. Ba2 {[%clk 0:00:16]}  Rg4 {[%clk 0:00:10]} 86. Bb3 {[%clk 0:00:16]}  Kg5 {[%clk 0:00:10]} 87. Ba2 {[%clk 0:00:16]}  Kh6 {[%clk 0:00:10]} 88. Bg8 {[%clk 0:00:15]}  Rg7 {[%clk 0:00:08]} 89. Bb3 {[%clk 0:00:15]}  Kg6 {[%clk 0:00:07]} 90. Bc2+ {[%clk 0:00:15]}  Kf7 {[%clk 0:00:06]} 91. Bb3+ {[%clk 0:00:15]}  Kf8 {[%clk 0:00:07]} 92. Ba2 {[%clk 0:00:14]}  Rg2 {[%clk 0:00:05]} 93. Bb1 {[%clk 0:00:14]}  Rh2+ {[%clk 0:00:04]} 94. Bh7 {[%clk 0:00:14]}  Rb2 {[%clk 0:00:05]} 95. Bd3 {[%clk 0:00:14]}  Rb8 {[%clk 0:00:06]} 96. Kh7 {[%clk 0:00:14]}  Rd8 {[%clk 0:00:07]} 97. Be4 {[%clk 0:00:14]}  Rd6 {[%clk 0:00:07]} 98. Bf5 {[%clk 0:00:14]}  Rd4 {[%clk 0:00:08]} 99. Bb1 {[%clk 0:00:14]}  Rb4 {[%clk 0:00:09]} 100. Bc2 {[%clk 0:00:15]}  Ke7 {[%clk 0:00:10]} 101. Kg6 {[%clk 0:00:14]}  Ke6 {[%clk 0:00:10]} 102. Bd3 {[%clk 0:00:14]}  Ke5 {[%clk 0:00:10]} 103. Bc2 {[%clk 0:00:14]} 1/2-1/2


[Site "https://www.chess.com"]

[Event "Titled Tuesday Blitz March 07 Late 2023"]
[White "Mirzoev, Azer"]
[Black "Girsh, Daniel"]
[WhiteFideId "13400304"]
[BlackFideId "30949190"]
[WhiteElo "2525"]
[BlackElo "2075"]
[Result "1-0"]
[Round "03"]
[TimeControl "180+2"]
[Date "2023.03.07"]
[WhiteClock "0:01:04"]
[BlackClock "0:00:23"]

1. d4 {[%clk 0:03:00]}  Nf6 {[%clk 0:02:59]} 2. c4 {[%clk 0:02:59]}  g6 {[%clk 0:02:59]} 3. Nc3 {[%clk 0:03:00]}  Bg7 {[%clk 0:02:59]} 4. e4 {[%clk 0:03:00]}  O-O {[%clk 0:03:00]} 5. f3 {[%clk 0:03:00]}  d6 {[%clk 0:03:00]} 6. Bg5 {[%clk 0:03:01]}  Nbd7 {[%clk 0:03:00]} 7. Qd2 {[%clk 0:02:59]}  a6 {[%clk 0:03:00]} 8. Nh3 {[%clk 0:02:56]}  c5 {[%clk 0:03:01]} 9. d5 {[%clk 0:02:54]}  b5 {[%clk 0:02:59]} 10. cxb5 {[%clk 0:02:52]}  Qa5 {[%clk 0:02:59]} 11. Nf2 {[%clk 0:02:48]}  Nb6 {[%clk 0:02:51]} 12. a4 {[%clk 0:02:40]}  axb5 {[%clk 0:02:50]} 13. Bxb5 {[%clk 0:02:39]}  Ba6 {[%clk 0:02:49]} 14. O-O {[%clk 0:02:19]}  Bxb5 {[%clk 0:02:46]} 15. axb5 {[%clk 0:02:18]}  Qxa1 {[%clk 0:02:45]} 16. Rxa1 {[%clk 0:02:17]}  Rxa1+ {[%clk 0:02:46]} 17. Nfd1 {[%clk 0:02:17]}  Rfa8 {[%clk 0:02:37]} 18. h3 {[%clk 0:02:10]}  R8a7 {[%clk 0:02:27]} 19. Kh2 {[%clk 0:02:09]}  Ne8 {[%clk 0:02:18]} 20. Bh6 {[%clk 0:02:08]}  Bd4 {[%clk 0:02:13]} 21. Ne3 {[%clk 0:01:59]}  Nc7 {[%clk 0:02:04]} 22. Nc2 {[%clk 0:01:56]}  Bg1+ {[%clk 0:01:50]} 23. Kg3 {[%clk 0:01:55]}  Rf1 {[%clk 0:01:44]} 24. Qe2 {[%clk 0:01:30]}  Rf2 {[%clk 0:01:39]} 25. Qd1 {[%clk 0:01:27]}  Nc4 {[%clk 0:01:15]} 26. Ne3 {[%clk 0:01:17]}  Nxe3 {[%clk 0:00:28]} 27. Bxe3 {[%clk 0:01:16]}  Rxg2+ {[%clk 0:00:24]} 28. Kxg2 {[%clk 0:01:16]}  Bxe3 {[%clk 0:00:25]} 29. b6 {[%clk 0:01:14]}  Rb7 {[%clk 0:00:25]} 30. bxc7 {[%clk 0:01:14]}  Rxc7 {[%clk 0:00:26]} 31. Qe2 {[%clk 0:01:11]}  Bd4 {[%clk 0:00:26]} 32. Nb5 {[%clk 0:01:11]}  Rb7 {[%clk 0:00:26]} 33. Nxd4 {[%clk 0:01:12]}  cxd4 {[%clk 0:00:27]} 34. Qd2 {[%clk 0:01:12]}  Rb3 {[%clk 0:00:25]} 35. Qxd4 {[%clk 0:01:11]}  f6 {[%clk 0:00:26]} 36. Qd2 {[%clk 0:01:11]}  Kf7 {[%clk 0:00:25]} 37. Qc2 {[%clk 0:01:10]}  Rb4 {[%clk 0:00:25]} 38. b3 {[%clk 0:01:10]}  h5 {[%clk 0:00:24]} 39. h4 {[%clk 0:01:10]}  g5 {[%clk 0:00:24]} 40. hxg5 {[%clk 0:01:09]}  fxg5 {[%clk 0:00:25]} 41. Qc3 {[%clk 0:01:10]}  Rb8 {[%clk 0:00:24]} 42. b4 {[%clk 0:01:09]}  Ra8 {[%clk 0:00:25]} 43. Qb2 {[%clk 0:01:08]}  Kg6 {[%clk 0:00:21]} 44. b5 {[%clk 0:01:08]}  Rb8 {[%clk 0:00:22]} 45. b6 {[%clk 0:01:08]}  Rb7 {[%clk 0:00:23]} 46. Qb5 {[%clk 0:01:07]}  Kf6 {[%clk 0:00:22]} 47. Qc6 {[%clk 0:01:06]}  Rb8 {[%clk 0:00:23]} 48. b7 {[%clk 0:01:07]}  g4 {[%clk 0:00:22]} 49. fxg4 {[%clk 0:01:06]}  Rg8 {[%clk 0:00:22]} 50. Qc8 {[%clk 0:01:04]}  Rxg4+ {[%clk 0:00:22]} 51. Qxg4 {[%clk 0:01:04]}  hxg4 {[%clk 0:00:23]} 52. b8=Q {[%clk 0:01:04]} 1-0


[Site "https://www.chess.com"]